{"text_format":"1","workbook":"xlsx","n_sheets":7,"sheets":["Instructions","Sister A","Sister B","Sister C","Sister D","Sister E","Sister F"],"not_rendered":{"charts":0,"images":1,"macros":1,"external_links":0,"defined_names":0,"comments":0,"pivot_tables":0},"unopened":[],"bounds":{"document_bytes":16777216,"sheet_cells":100000,"rows_first":2000,"rows_last":500,"rows_between":2000,"halvings":0,"cell_chars":16384,"cell_head_chars":4096},"cells_cut":0,"cells_raw":0,"read":"whole","date_system":"1900"}

{"sheet":"Instructions","index":0,"n_rows":22,"n_cols":9,"rows_kept":22,"cut":false,"hidden":false,"merged":[[21,1,21,8],[0,1,0,7],[17,1,17,8],[18,1,18,8],[19,1,19,8],[20,1,20,8]]}
[null,"SAFETY, HEALTH, ENVIRONMENT AND QUALITY MANAGEMENT SYSTEM\n\nVFD REPORTING FORM\n\nREPORTING FORMS MANUAL",null,null,null,null,null,null,"Form : 1.1.6 A\nDate : 08-Aug-2025\nRev : 10.0\nApp By : DPA\t"]
[]
[]
[]
[]
[]
[]
[]
[]
[]
[]
[]
[]
[]
[]
[]
["Instructions:"]
["1.","Select your respective vessel."]
["2.","Input date into cell A10 and the form will autopopulate the days of the month which was inputted."]
["3.","Fill in all required information."]
["4.","Note that \"Load without VFD\" column should be inputted according to which VFD's are in service and whether the Main Engine is running or not. "]
["5.","Save form on a monthly basis as per filling system 1.1.6 VSL YYYY MM in folder 1.1.6 VFD Reports"]

{"sheet":"Sister A","index":1,"n_rows":43,"n_cols":18,"rows_kept":43,"cut":false,"hidden":true,"merged":[[7,0,8,0],[7,17,10,17],[7,1,7,8],[8,10,9,10],[7,9,9,9],[7,11,9,11],[7,13,9,13],[7,14,9,14],[7,15,9,15],[7,16,9,16],[7,12,10,12]]}
["Vessel:"]
["IMO No.:"]
["Type:"]
["Year of construction:"]
["Deadweight:"]
["Start date:"]
[]
["DATE:","Readings from HMI",null,null,null,null,null,null,null,"TOTAL","Load without VFD","Main Switchboard Load","Generators Running","Main Engine Load","Water Temp.","E/R Temp.","Daily HFO Saving","VFD Issues"]
[null,"C.S.W Pump No.1","C.S.W Pump No.2","C.S.W Pump No.3","L.T. F.W. Pump No.1","L.T. F.W. Pump No.2","L.T. F.W. Pump No.3","E/R Fan No.1","E/R Fan No.2",null,"ME RUN -155kW ME STOP -133kW"]
[null,"22kW","22kW","22kW","37kW","37kW","37kW","18.5kW","18.5kW"]
[{"$f":"EOMONTH(A10,0)","v":"1900-01-31"},"kWh","kWh","kWh","kWh","kWh","kWh","kWh","kWh","kWh","kW","kW",null,"RPM","°C","°C","MT"]
["00:00:00",null,null,null,null,null,null,null,null,{"$f":"SUM(B12:I12)","v":0},null,null,null,null,null,null,{"$f":"(K12-J12)*(236/1000000)*24","v":0}]
["1900-01-01",null,null,null,null,null,null,null,null,{"$f":"SUM(B13:I13)","v":0},null,null,null,null,null,null,{"$f":"(K13-J13)*(236/1000000)*24","v":0}]
["1900-01-02",null,null,null,null,null,null,null,null,0,null,null,null,null,null,null,0]
["1900-01-03",null,null,null,null,null,null,null,null,0,null,null,null,null,null,null,0]
["1900-01-04",null,null,null,null,null,null,null,null,0,null,null,null,null,null,null,0]
["1900-01-05",null,null,null,null,null,null,null,null,0,null,null,null,null,null,null,0]
["1900-01-06",null,null,null,null,null,null,null,null,0,null,null,null,null,null,null,0]
["1900-01-07",null,null,null,null,null,null,null,null,0,null,null,null,null,null,null,0]
["1900-01-08",null,null,null,null,null,null,null,null,0,null,null,null,null,null,null,0]
["1900-01-09",null,null,null,null,null,null,null,null,0,null,null,null,null,null,null,0]
["1900-01-10",null,null,null,null,null,null,null,null,0,null,null,null,null,null,null,0]
["1900-01-11",null,null,null,null,null,null,null,null,0,null,null,null,null,null,null,0]
["1900-01-12",null,null,null,null,null,null,null,null,0,null,null,null,null,null,null,0]
["1900-01-13",null,null,null,null,null,null,null,null,0,null,null,null,null,null,null,0]
["1900-01-14",null,null,null,null,null,null,null,null,0,null,null,null,null,null,null,0]
["1900-01-15",null,null,null,null,null,null,null,null,0,null,null,null,null,null,null,0]
["1900-01-16",null,null,null,null,null,null,null,null,0,null,null,null,null,null,null,0]
["1900-01-17",null,null,null,null,null,null,null,null,0,null,null,null,null,null,null,0]
["1900-01-18",null,null,null,null,null,null,null,null,0,null,null,null,null,null,null,0]
["1900-01-19",null,null,null,null,null,null,null,null,0,null,null,null,null,null,null,0]
["1900-01-20",null,null,null,null,null,null,null,null,0,null,null,null,null,null,null,0]
["1900-01-21",null,null,null,null,null,null,null,null,0,null,null,null,null,null,null,0]
["1900-01-22",null,null,null,null,null,null,null,null,0,null,null,null,null,null,null,0]
["1900-01-23",null,null,null,null,null,null,null,null,0,null,null,null,null,null,null,0]
["1900-01-24",null,null,null,null,null,null,null,null,0,null,null,null,null,null,null,0]
["1900-01-25",null,null,null,null,null,null,null,null,0,null,null,null,null,null,null,0]
["1900-01-26",null,null,null,null,null,null,null,null,0,null,null,null,null,null,null,0]
["1900-01-27",null,null,null,null,null,null,null,null,0,null,null,null,null,null,null,0]
["1900-01-28",null,null,null,null,null,null,null,null,0,null,null,null,null,null,null,0]
["1900-01-29",null,null,null,null,null,null,null,null,0,null,null,null,null,null,null,0]
["1900-01-30",null,null,null,null,null,null,null,null,0,null,null,null,null,null,null,0]
["1900-01-31",{"$f":"IFERROR(SUM(B12:B42),\"\")","v":0},{"$f":"IFERROR(SUM(C12:C42),\"\")","v":0},0,0,0,0,0,0,0,null,{"$f":"IFERROR(AVERAGE(L12:L42),\"\")","v":""},null,null,{"$f":"IFERROR(AVERAGE(O12:O42),\"\")","v":""},"",{"$f":"IFERROR(SUM(Q12:Q42),\"\")","v":0}]

{"sheet":"Sister B","index":2,"n_rows":43,"n_cols":16,"rows_kept":43,"cut":false,"hidden":true,"merged":[[7,1,7,6],[7,7,9,7],[7,9,9,9],[7,10,10,10],[7,0,8,0],[7,12,9,12],[7,13,9,13],[7,14,9,14],[7,15,10,15],[8,8,9,8],[7,11,9,11]]}
["Vessel:"]
["IMO No.:"]
["Type:"]
["Year of construction:"]
["Deadweight:"]
["Start date:"]
[]
["DATE:","Readings from HMI",null,null,null,null,null,"TOTAL","Load without VFD","Main Switchboard Load","Generators Running","Main Engine Load","Water Temp.","E/R Temp.","Daily HFO Saving","VFD Issues"]
[null,"C.S.W Pump No.1","C.S.W Pump No.2","L.T. F.W. Pump No.1","L.T. F.W. Pump No.2","E/R Fan No.1","E/R Fan No.2",null,"ME RUN -134kW ME STOP -134kW"]
[null,"36kW","36kW","54kW","54kW",22,22]
[{"$f":"EOMONTH(A10,0)","v":"1900-01-31"},"kWh","kWh","kWh","kWh","kWh","kWh","kWh","kW","kW",null,"RPM","°C","°C","MT"]
["00:00:00",null,null,null,null,null,null,{"$f":"SUM(B12:G12)","v":0},null,null,null,null,null,null,{"$f":"(I12-H12)*(236/1000000)*24","v":0}]
["1900-01-01",null,null,null,null,null,null,{"$f":"SUM(B13:G13)","v":0},null,null,null,null,null,null,{"$f":"(I13-H13)*(236/1000000)*24","v":0}]
["1900-01-02",null,null,null,null,null,null,0,null,null,null,null,null,null,0]
["1900-01-03",null,null,null,null,null,null,0,null,null,null,null,null,null,0]
["1900-01-04",null,null,null,null,null,null,0,null,null,null,null,null,null,0]
["1900-01-05",null,null,null,null,null,null,0,null,null,null,null,null,null,0]
["1900-01-06",null,null,null,null,null,null,0,null,null,null,null,null,null,0]
["1900-01-07",null,null,null,null,null,null,0,null,null,null,null,null,null,0]
["1900-01-08",null,null,null,null,null,null,0,null,null,null,null,null,null,0]
["1900-01-09",null,null,null,null,null,null,0,null,null,null,null,null,null,0]
["1900-01-10",null,null,null,null,null,null,0,null,null,null,null,null,null,0]
["1900-01-11",null,null,null,null,null,null,0,null,null,null,null,null,null,0]
["1900-01-12",null,null,null,null,null,null,0,null,null,null,null,null,null,0]
["1900-01-13",null,null,null,null,null,null,0,null,null,null,null,null,null,0]
["1900-01-14",null,null,null,null,null,null,0,null,null,null,null,null,null,0]
["1900-01-15",null,null,null,null,null,null,0,null,null,null,null,null,null,0]
["1900-01-16",null,null,null,null,null,null,0,null,null,null,null,null,null,0]
["1900-01-17",null,null,null,null,null,null,0,null,null,null,null,null,null,0]
["1900-01-18",null,null,null,null,null,null,0,null,null,null,null,null,null,0]
["1900-01-19",null,null,null,null,null,null,0,null,null,null,null,null,null,0]
["1900-01-20",null,null,null,null,null,null,0,null,null,null,null,null,null,0]
["1900-01-21",null,null,null,null,null,null,0,null,null,null,null,null,null,0]
["1900-01-22",null,null,null,null,null,null,0,null,null,null,null,null,null,0]
["1900-01-23",null,null,null,null,null,null,0,null,null,null,null,null,null,0]
["1900-01-24",null,null,null,null,null,null,0,null,null,null,null,null,null,0]
["1900-01-25",null,null,null,null,null,null,0,null,null,null,null,null,null,0]
["1900-01-26",null,null,null,null,null,null,0,null,null,null,null,null,null,0]
["1900-01-27",null,null,null,null,null,null,0,null,null,null,null,null,null,0]
["1900-01-28",null,null,null,null,null,null,0,null,null,null,null,null,null,0]
["1900-01-29",null,null,null,null,null,null,0,null,null,null,null,null,null,0]
["1900-01-30",null,null,null,null,null,null,0,null,null,null,null,null,null,0]
["1900-01-31",{"$f":"IFERROR(SUM(B12:B42),\"\")","v":0},{"$f":"IFERROR(SUM(C12:C42),\"\")","v":0},0,0,0,0,0,null,{"$f":"IFERROR(AVERAGE(J12:J42),\"\")","v":""},null,null,{"$f":"IFERROR(AVERAGE(M12:M42),\"\")","v":""},{"$f":"IFERROR(AVERAGE(N12:N42),\"\")","v":""},{"$f":"IFERROR(SUM(O12:O42),\"\")","v":0}]

{"sheet":"Sister C","index":3,"n_rows":43,"n_cols":16,"rows_kept":43,"cut":false,"hidden":true,"merged":[[7,1,7,6],[7,7,9,7],[7,9,9,9],[7,10,10,10],[7,0,8,0],[7,12,9,12],[7,13,9,13],[7,14,9,14],[7,15,10,15],[8,8,9,8],[7,11,9,11]]}
["Vessel:"]
["IMO No.:"]
["Type:"]
["Year of construction:"]
["Deadweight:"]
["Start date:"]
[]
["DATE:","Readings from HMI",null,null,null,null,null,"TOTAL","Load without VFD","Main Switchboard Load","Generators Running","Main Engine Load","Water Temp.","E/R Temp.","Daily HFO Saving","VFD Issues"]
[null,"S.W Serv. Pump","RESERV. C.S.W & S.W SERV. Pump","C.S.W Pump","AHU","E/R Fan No.1","E/R Fan No.2",null,"ME RUN - 93/100/108kW ME STOP -71/78kW"]
[null,"30kW","37kW","22kW","11kW","15kW","15kW"]
[{"$f":"EOMONTH(A10,0)","v":"1900-01-31"},"kWh","kWh","kWh","kWh","kWh","kWh","kWh","kW","kW",null,"RPM","°C","°C","MT"]
["00:00:00",null,null,null,null,null,null,{"$f":"SUM(B12:G12)","v":0},null,null,null,null,null,null,{"$f":"(I12-H12)*(236/1000000)*24","v":0}]
["1900-01-01",null,null,null,null,null,null,{"$f":"SUM(B13:G13)","v":0},null,null,null,null,null,null,{"$f":"(I13-H13)*(236/1000000)*24","v":0}]
["1900-01-02",null,null,null,null,null,null,0,null,null,null,null,null,null,0]
["1900-01-03",null,null,null,null,null,null,0,null,null,null,null,null,null,0]
["1900-01-04",null,null,null,null,null,null,0,null,null,null,null,null,null,0]
["1900-01-05",null,null,null,null,null,null,0,null,null,null,null,null,null,0]
["1900-01-06",null,null,null,null,null,null,0,null,null,null,null,null,null,0]
["1900-01-07",null,null,null,null,null,null,0,null,null,null,null,null,null,0]
["1900-01-08",null,null,null,null,null,null,0,null,null,null,null,null,null,0]
["1900-01-09",null,null,null,null,null,null,0,null,null,null,null,null,null,0]
["1900-01-10",null,null,null,null,null,null,0,null,null,null,null,null,null,0]
["1900-01-11",null,null,null,null,null,null,0,null,null,null,null,null,null,0]
["1900-01-12",null,null,null,null,null,null,0,null,null,null,null,null,null,0]
["1900-01-13",null,null,null,null,null,null,0,null,null,null,null,null,null,0]
["1900-01-14",null,null,null,null,null,null,0,null,null,null,null,null,null,0]
["1900-01-15",null,null,null,null,null,null,0,null,null,null,null,null,null,0]
["1900-01-16",null,null,null,null,null,null,0,null,null,null,null,null,null,0]
["1900-01-17",null,null,null,null,null,null,0,null,null,null,null,null,null,0]
["1900-01-18",null,null,null,null,null,null,0,null,null,null,null,null,null,0]
["1900-01-19",null,null,null,null,null,null,0,null,null,null,null,null,null,0]
["1900-01-20",null,null,null,null,null,null,0,null,null,null,null,null,null,0]
["1900-01-21",null,null,null,null,null,null,0,null,null,null,null,null,null,0]
["1900-01-22",null,null,null,null,null,null,0,null,null,null,null,null,null,0]
["1900-01-23",null,null,null,null,null,null,0,null,null,null,null,null,null,0]
["1900-01-24",null,null,null,null,null,null,0,null,null,null,null,null,null,0]
["1900-01-25",null,null,null,null,null,null,0,null,null,null,null,null,null,0]
["1900-01-26",null,null,null,null,null,null,0,null,null,null,null,null,null,0]
["1900-01-27",null,null,null,null,null,null,0,null,null,null,null,null,null,0]
["1900-01-28",null,null,null,null,null,null,0,null,null,null,null,null,null,0]
["1900-01-29",null,null,null,null,null,null,0,null,null,null,null,null,null,0]
["1900-01-30",null,null,null,null,null,null,0,null,null,null,null,null,null,0]
["1900-01-31",{"$f":"IFERROR(SUM(B12:B42),\"\")","v":0},{"$f":"IFERROR(SUM(C12:C42),\"\")","v":0},{"$f":"IFERROR(SUM(D12:D42),\"\")","v":0},0,0,0,0,null,{"$f":"IFERROR(AVERAGE(J12:J42),\"\")","v":""},null,null,{"$f":"IFERROR(AVERAGE(M12:M42),\"\")","v":""},{"$f":"IFERROR(AVERAGE(N12:N42),\"\")","v":""},{"$f":"SUM(O12:O42)","v":0}]

{"sheet":"Sister D","index":4,"n_rows":43,"n_cols":16,"rows_kept":43,"cut":false,"hidden":true,"merged":[[7,1,7,6],[7,7,9,7],[7,9,9,9],[7,10,10,10],[7,0,8,0],[7,12,9,12],[7,13,9,13],[7,14,9,14],[7,15,10,15],[8,8,9,8],[7,11,9,11]]}
["Vessel:"]
["IMO No.:"]
["Type:"]
["Year of construction:"]
["Deadweight:"]
["Start date:"]
[]
["DATE:","Readings from HMI",null,null,null,null,null,"TOTAL","Load without VFD","Main Switchboard Load","Generators Running","Main Engine Load","Water Temp.","E/R Temp.","Daily HFO Saving","VFD Issues"]
[null,"S.W Serv. Pump","RESERV. C.S.W & S.W SERV. Pump","C.S.W Pump","AHU","E/R Fan No.1","E/R Fan No.2",null,"ME RUN - 93/100/108kW ME STOP -71/78kW"]
[null,"30kW","37kW","22kW","11kW","15kW","15kW"]
[{"$f":"EOMONTH(A10,0)","v":"1900-01-31"},"kWh","kWh","kWh","kWh","kWh","kWh","kWh","kW","kW",null,"RPM","°C","°C","MT"]
["00:00:00",null,null,null,null,null,null,{"$f":"SUM(B12:G12)","v":0},null,null,null,null,null,null,{"$f":"(I12-H12)*(236/1000000)*24","v":0}]
["1900-01-01",null,null,null,null,null,null,0,null,null,null,null,null,null,{"$f":"(I13-H13)*(236/1000000)*24","v":0}]
["1900-01-02",null,null,null,null,null,null,0,null,null,null,null,null,null,0]
["1900-01-03",null,null,null,null,null,null,0,null,null,null,null,null,null,0]
["1900-01-04",null,null,null,null,null,null,0,null,null,null,null,null,null,0]
["1900-01-05",null,null,null,null,null,null,0,null,null,null,null,null,null,0]
["1900-01-06",null,null,null,null,null,null,0,null,null,null,null,null,null,0]
["1900-01-07",null,null,null,null,null,null,0,null,null,null,null,null,null,0]
["1900-01-08",null,null,null,null,null,null,0,null,null,null,null,null,null,0]
["1900-01-09",null,null,null,null,null,null,0,null,null,null,null,null,null,0]
["1900-01-10",null,null,null,null,null,null,0,null,null,null,null,null,null,0]
["1900-01-11",null,null,null,null,null,null,0,null,null,null,null,null,null,0]
["1900-01-12",null,null,null,null,null,null,0,null,null,null,null,null,null,0]
["1900-01-13",null,null,null,null,null,null,0,null,null,null,null,null,null,0]
["1900-01-14",null,null,null,null,null,null,0,null,null,null,null,null,null,0]
["1900-01-15",null,null,null,null,null,null,0,null,null,null,null,null,null,0]
["1900-01-16",null,null,null,null,null,null,0,null,null,null,null,null,null,0]
["1900-01-17",null,null,null,null,null,null,0,null,null,null,null,null,null,0]
["1900-01-18",null,null,null,null,null,null,0,null,null,null,null,null,null,0]
["1900-01-19",null,null,null,null,null,null,0,null,null,null,null,null,null,0]
["1900-01-20",null,null,null,null,null,null,0,null,null,null,null,null,null,0]
["1900-01-21",null,null,null,null,null,null,0,null,null,null,null,null,null,0]
["1900-01-22",null,null,null,null,null,null,0,null,null,null,null,null,null,0]
["1900-01-23",null,null,null,null,null,null,0,null,null,null,null,null,null,0]
["1900-01-24",null,null,null,null,null,null,0,null,null,null,null,null,null,0]
["1900-01-25",null,null,null,null,null,null,0,null,null,null,null,null,null,0]
["1900-01-26",null,null,null,null,null,null,0,null,null,null,null,null,null,0]
["1900-01-27",null,null,null,null,null,null,0,null,null,null,null,null,null,0]
["1900-01-28",null,null,null,null,null,null,0,null,null,null,null,null,null,0]
["1900-01-29",null,null,null,null,null,null,0,null,null,null,null,null,null,0]
["1900-01-30",null,null,null,null,null,null,0,null,null,null,null,null,null,0]
["1900-01-31",{"$f":"IFERROR(SUM(B12:B42),\"\")","v":0},{"$f":"IFERROR(SUM(C12:C42),\"\")","v":0},{"$f":"IFERROR(SUM(D12:D42),\"\")","v":0},0,0,0,0,null,{"$f":"IFERROR(AVERAGE(J12:J42),\"\")","v":""},null,null,{"$f":"IFERROR(AVERAGE(M12:M42),\"\")","v":""},{"$f":"IFERROR(AVERAGE(N12:N42),\"\")","v":""},{"$f":"SUM(O12:O42)","v":0}]

{"sheet":"Sister E","index":5,"n_rows":43,"n_cols":16,"rows_kept":43,"cut":false,"hidden":true,"merged":[[7,1,7,6],[7,7,9,7],[7,9,9,9],[7,10,10,10],[7,0,8,0],[7,12,9,12],[7,13,9,13],[7,14,9,14],[7,15,10,15],[8,8,9,8],[7,11,9,11]]}
["Vessel:"]
["IMO No.:"]
["Type:"]
["Year of construction:"]
["Deadweight:"]
["Start date:"]
[]
["DATE:","Readings from HMI",null,null,null,null,null,"TOTAL","Load without VFD","Main Switchboard Load","Generators Running","Main Engine Load","Water Temp.","E/R Temp.","Daily HFO Saving","VFD Issues"]
[null,"S.W Serv. Pump","RESERV. C.S.W & S.W SERV. Pump","C.S.W Pump","AHU","E/R Fan No.1","E/R Fan No.2",null,"ME RUN - 89.5/101kW ME STOP -71kW"]
[null,"30kW","30kW","18.5kW","11kW","15kW","15kW"]
[{"$f":"EOMONTH(A10,0)","v":"1900-01-31"},"kWh","kWh","kWh","kWh","kWh","kWh","kWh","kW","kW",null,"RPM","°C","°C","MT"]
["00:00:00",null,null,null,null,null,null,{"$f":"SUM(B12:G12)","v":0},null,null,null,null,null,null,{"$f":"(I12-H12)*(236/1000000)*24","v":0}]
["1900-01-01",null,null,null,null,null,null,{"$f":"SUM(B13:G13)","v":0},null,null,null,null,null,null,{"$f":"(I13-H13)*(236/1000000)*24","v":0}]
["1900-01-02",null,null,null,null,null,null,0,null,null,null,null,null,null,0]
["1900-01-03",null,null,null,null,null,null,0,null,null,null,null,null,null,0]
["1900-01-04",null,null,null,null,null,null,0,null,null,null,null,null,null,0]
["1900-01-05",null,null,null,null,null,null,0,null,null,null,null,null,null,0]
["1900-01-06",null,null,null,null,null,null,0,null,null,null,null,null,null,0]
["1900-01-07",null,null,null,null,null,null,0,null,null,null,null,null,null,0]
["1900-01-08",null,null,null,null,null,null,0,null,null,null,null,null,null,0]
["1900-01-09",null,null,null,null,null,null,0,null,null,null,null,null,null,0]
["1900-01-10",null,null,null,null,null,null,0,null,null,null,null,null,null,0]
["1900-01-11",null,null,null,null,null,null,0,null,null,null,null,null,null,0]
["1900-01-12",null,null,null,null,null,null,0,null,null,null,null,null,null,0]
["1900-01-13",null,null,null,null,null,null,0,null,null,null,null,null,null,0]
["1900-01-14",null,null,null,null,null,null,0,null,null,null,null,null,null,0]
["1900-01-15",null,null,null,null,null,null,0,null,null,null,null,null,null,0]
["1900-01-16",null,null,null,null,null,null,0,null,null,null,null,null,null,0]
["1900-01-17",null,null,null,null,null,null,0,null,null,null,null,null,null,0]
["1900-01-18",null,null,null,null,null,null,0,null,null,null,null,null,null,0]
["1900-01-19",null,null,null,null,null,null,0,null,null,null,null,null,null,0]
["1900-01-20",null,null,null,null,null,null,0,null,null,null,null,null,null,0]
["1900-01-21",null,null,null,null,null,null,0,null,null,null,null,null,null,0]
["1900-01-22",null,null,null,null,null,null,0,null,null,null,null,null,null,0]
["1900-01-23",null,null,null,null,null,null,0,null,null,null,null,null,null,0]
["1900-01-24",null,null,null,null,null,null,0,null,null,null,null,null,null,0]
["1900-01-25",null,null,null,null,null,null,0,null,null,null,null,null,null,0]
["1900-01-26",null,null,null,null,null,null,0,null,null,null,null,null,null,0]
["1900-01-27",null,null,null,null,null,null,0,null,null,null,null,null,null,0]
["1900-01-28",null,null,null,null,null,null,0,null,null,null,null,null,null,0]
["1900-01-29",null,null,null,null,null,null,0,null,null,null,null,null,null,0]
["1900-01-30",null,null,null,null,null,null,0,null,null,null,null,null,null,0]
["1900-01-31",{"$f":"IFERROR(SUM(B12:B42),\"\")","v":0},0,0,0,0,0,{"$f":"IFERROR(SUM(B43:G43),\"\")","v":0},null,{"$f":"IFERROR(AVERAGE(J12:J42),\"\")","v":""},null,null,{"$f":"IFERROR(AVERAGE(M12:M42),\"\")","v":""},{"$f":"IFERROR(AVERAGE(N12:N42),\"\")","v":""},{"$f":"IFERROR(SUM(O12:O42),\"\")","v":0}]

{"sheet":"Sister F","index":6,"n_rows":43,"n_cols":15,"rows_kept":43,"cut":false,"hidden":true,"merged":[[7,11,9,11],[7,12,9,12],[7,13,9,13],[7,14,10,14],[8,7,9,7],[7,10,9,10],[7,0,8,0],[7,1,7,5],[7,6,9,6],[7,8,9,8],[7,9,10,9]]}
["Vessel:"]
["IMO No.:"]
["Type:"]
["Year of construction:"]
["Deadweight:"]
["Start date:"]
[]
["DATE:","Readings from HMI",null,null,null,null,"TOTAL","Load without VFD","Main Switchboard Load","Generators Running","Main Engine Load","Water Temp.","E/R Temp.","Daily HFO Saving","VFD Issues"]
[null,"S.W Serv. Pump","RESERV. C.S.W & S.W SERV. Pump","C.S.W Pump","E/R Fan No.1","E/R Fan No.2",null,"ME RUN - 82/89/97kW ME STOP -60/67kW"]
[null,"30kW","37kW","22kW","15kW","15kW"]
[{"$f":"EOMONTH(A10,0)","v":"1900-01-31"},"kWh","kWh","kWh","kWh","kWh","kWh","kW","kW",null,"RPM","°C","°C","MT"]
["00:00:00",null,null,null,null,null,{"$f":"SUM(B12:F12)","v":0},null,null,null,null,null,null,{"$f":"(H12-G12)*(236/1000000)*24","v":0}]
["1900-01-01",null,null,null,null,null,{"$f":"SUM(B13:F13)","v":0},null,null,null,null,null,null,{"$f":"(H13-G13)*(236/1000000)*24","v":0}]
["1900-01-02",null,null,null,null,null,0,null,null,null,null,null,null,0]
["1900-01-03",null,null,null,null,null,0,null,null,null,null,null,null,0]
["1900-01-04",null,null,null,null,null,0,null,null,null,null,null,null,0]
["1900-01-05",null,null,null,null,null,0,null,null,null,null,null,null,0]
["1900-01-06",null,null,null,null,null,0,null,null,null,null,null,null,0]
["1900-01-07",null,null,null,null,null,0,null,null,null,null,null,null,0]
["1900-01-08",null,null,null,null,null,0,null,null,null,null,null,null,0]
["1900-01-09",null,null,null,null,null,0,null,null,null,null,null,null,0]
["1900-01-10",null,null,null,null,null,0,null,null,null,null,null,null,0]
["1900-01-11",null,null,null,null,null,0,null,null,null,null,null,null,0]
["1900-01-12",null,null,null,null,null,0,null,null,null,null,null,null,0]
["1900-01-13",null,null,null,null,null,0,null,null,null,null,null,null,0]
["1900-01-14",null,null,null,null,null,0,null,null,null,null,null,null,0]
["1900-01-15",null,null,null,null,null,0,null,null,null,null,null,null,0]
["1900-01-16",null,null,null,null,null,0,null,null,null,null,null,null,0]
["1900-01-17",null,null,null,null,null,0,null,null,null,null,null,null,0]
["1900-01-18",null,null,null,null,null,0,null,null,null,null,null,null,0]
["1900-01-19",null,null,null,null,null,0,null,null,null,null,null,null,0]
["1900-01-20",null,null,null,null,null,0,null,null,null,null,null,null,{"$f":"(H32-G32)*(236/1000000)*24","v":0}]
["1900-01-21",null,null,null,null,null,0,null,null,null,null,null,null,0]
["1900-01-22",null,null,null,null,null,0,null,null,null,null,null,null,0]
["1900-01-23",null,null,null,null,null,0,null,null,null,null,null,null,0]
["1900-01-24",null,null,null,null,null,0,null,null,null,null,null,null,0]
["1900-01-25",null,null,null,null,null,0,null,null,null,null,null,null,0]
["1900-01-26",null,null,null,null,null,0,null,null,null,null,null,null,0]
["1900-01-27",null,null,null,null,null,0,null,null,null,null,null,null,0]
["1900-01-28",null,null,null,null,null,0,null,null,null,null,null,null,0]
["1900-01-29",null,null,null,null,null,0,null,null,null,null,null,null,0]
["1900-01-30",null,null,null,null,null,0,null,null,null,null,null,null,0]
["1900-01-31",{"$f":"IFERROR(SUM(B12:B42),\"\")","v":0},0,0,0,0,{"$f":"IFERROR(SUM(B43:F43),\"\")","v":0},null,{"$f":"IFERROR(AVERAGE(I12:I42),\"\")","v":""},null,null,{"$f":"IFERROR(AVERAGE(L12:L42),\"\")","v":""},{"$f":"IFERROR(AVERAGE(M12:M42),\"\")","v":""},{"$f":"IFERROR(SUM(N12:N42),\"\")","v":0}]